Workbook

Sheet прилож. № 7
A1: Приложение № 2
A2: к решению Думы Ушаковского муниципального образования от 26.07.2018 г. №__ "О внесении изменений в решение Думы Ушаковского муниципального образования № 66 от 08.12.2017г. "Об утверждении бюджета на 2018 г. и на плановый период 2019-2020 годов"
A4: РАСПРЕДЕЛЕНИЕ БЮДЖЕТНЫХ АССИГНОВАНИЙ ПО РАЗДЕЛАМ, ПОДРАЗДЕЛАМ, ЦЕЛЕВЫМ СТАТЬЯМ (МУНИЦИПАЛЬНЫМ ПРОГРАММАМ И НЕПРОГРАММНЫМ НАПРАВЛЕНИЯМ ДЕЯТЕЛЬНОСТИ) И ВИДАМ РАСХОДОВ КЛАССИФИКАЦИИ РАСХОДОВ БЮДЖЕТОВ НА 2018 ГОД
A6: Наименование | B6: РЗ | C6: Пр | D6: КЦСР | E6: КВР | F6: Сумма (тыс. руб)
A7: В С Е Г О | F7: =F8+F91+F96+F105+F126+F170+F188+F205 -> 87514.4
A8: ОБЩЕГОСУДАРСТВЕННЫЕ ВОПРОСЫ | B8: 01 | C8: 00 | D8: 00.0.00.00000 | E8: 000 | F8: =F9+F41+F80+F33+F87 -> 23433.6
A9: Функционирование высшего должностного лица субъекта Российской Федерации и муниципального образования | B9: 01 | C9: 02 | D9: 00.0.00.00000 | E9: 000 | F9: =F10 -> 1856.3
A10: Непрограммные расходы органов местного самоуправления | B10: 01 | C10: 02 | D10: 91.0.00.00000 | E10: 000 | F10: =F11+F18 -> 1856.3
A11: Непрограммные расходы органов местного самоуправления за счет средств местного бюджета | B11: 01 | C11: 02 | D11: 91.1.00.00000 | E11: 000 | F11: =F12 -> 1856.3
A12: Осуществление органами местного самоуправления полномочий местного значения поселения | B12: 01 | C12: 02 | D12: 91.1.00.60000 | E12: 000 | F12: =F13 -> 1856.3
A13: Обеспечение деятельности в сфере установленных функций | B13: 01 | C13: 02 | D13: 91.1.00.60001 | E13: 000 | F13: =F16+F17+F32 -> 1856.3
A14: Расходы на выплаты персоналу в целях обеспечения выполнения функций государственными (муниципальными) органами, казенными учреждениями, органами управления государственными внебюджетными фондами | B14: 01 | C14: 02 | D14: 91.1.00.60001 | E14: 100 | F14: =F15 -> 1856.3
A15: Расходы на выплаты персоналу государственных (муниципальных) органов | B15: 01 | C15: 02 | D15: 91.1.00.60001 | E15: 120 | F15: =F16+F17+F32 -> 1856.3
A16: Фонд оплаты труда государственных (муниципальных) органов | B16: 01 | C16: 02 | D16: 91.1.00.60001 | E16: 121 | F16: 1413.1
A17: Взносы по обязательному социальному страхованию на выплаты денежного содержания и иные выплаты работникам государственных (муниципальных) органов | B17: 01 | C17: 02 | D17: 91.1.00.60001 | E17: 129 | F17: 343.2
A18: Непрограммные расходы органов местного самоуправления за счет средств областного бюджета | B18: 01 | C18: 02 | D18: 91.1.00.60003 | E18: 000 | F18: =F19 -> 0.0
A19: Субсидии на выравнивание обеспеченности муниципальных образований Иркутской области по реализации ими их отдельных расходных обязательств | B19: 01 | C19: 02 | D19: 91.1.00.60004 | E19: 000 | F19: =F20 -> 0.0
A20: Расходы на выплаты персоналу в целях обеспечения выполнения функций государственными (муниципальными) органами, казенными учреждениями, органами управления государственными внебюджетными фондами | B20: 01 | C20: 02 | D20: 91.1.00.60005 | E20: 100 | F20: =F21 -> 0.0
A21: Расходы на выплаты персоналу государственных (муниципальных) органов | B21: 01 | C21: 02 | D21: 91.1.00.60006 | E21: 120 | F21: =F22+F23 -> 0.0
A22: Фонд оплаты труда государственных (муниципальных) органов | B22: 01 | C22: 02 | D22: 91.1.00.60007 | E22: 121 | F22: 0.0
A23: Взносы по обязательному социальному страхованию на выплаты денежного содержания и иные выплаты работникам государственных (муниципальных) органов | B23: 01 | C23: 02 | D23: 91.1.00.60008 | E23: 129 | F23: 0.0
A24: Функционирование Правительства Российской Федерации, высших исполнительных органов государственной власти субъектов РФ, местных администраций | B24: 01 | C24: 04 | D24: 91.1.00.60009 | E24: 000 | F24: =F41+F25 -> 17857.9
A25: Программные расходы | B25: 01 | C25: 04 | D25: 91.1.00.60010 | E25: 000 | F25: =F26 -> 0.0
A26: Муниципальная программа "Подготовка к празднованию 70-летия победы" | B26: 01 | C26: 04 | D26: 91.1.00.60011 | E26: 000 | F26: 0.0
A27: Реализация мероприятий муниципальной программы за счет средств местного бюджета | B27: 01 | C27: 04 | D27: 91.1.00.60012 | E27: 000 | F27: 0.0
A28: Мероприятия, связанные, с подготовкой к празднованию 70-летия победы | B28: 01 | C28: 04 | D28: 91.1.00.60013 | E28: 000 | F28: 0.0
A29: Закупка товаров, работ и услуг для обеспечения государственных (муниципальных) нужд | B29: 01 | C29: 04 | D29: 91.1.00.60014 | E29: 200 | F29: 0.0
A30: Иные закупки товаров, работ и услуг для обеспечения государственных (муниципальных) нужд | B30: 01 | C30: 04 | D30: 91.1.00.60015 | E30: 240 | F30: 0.0
A31: Прочая закупка товаров, работ и услуг для обеспечения государственных (муниципальных) нужд | B31: 01 | C31: 04 | D31: 91.1.00.60016 | E31: 244
A32: Иные выплаты персоналу государственных (муниципальных) органов, за исключением фонда оплаты труда | B32: 01 | C32: 02 | D32: 91.1.00.60001 | E32: 122 | F32: 100.0
A33: Функционирование законодательных (представительных) органов государственной власти и представительных органов муниципальных образований | B33: 01 | C33: 03 | D33: 91.1.00.00000 | E33: 000 | F33: 765.4
A34: Непрограммные расходы органов местного самоуправления за счет средств местного бюджета | B34: 01 | C34: 03 | D34: 91.1.00.00000 | E34: 000 | F34: 765.4
A35: Осуществление органами местного самоуправления полномочий местного значения поселения | B35: 01 | C35: 03 | D35: 91.1.00.60000 | E35: 000 | F35: 765.4
A36: Обеспечение деятельности в сфере установленных функций | B36: 01 | C36: 03 | D36: 91.1.00.60001 | E36: 000 | F36: 765.4
A37: Расходы на выплаты персоналу в целях обеспечения выполнения функций государственными (муниципальными) органами, казенными учреждениями, органами управления государственными внебюджетными фондами | B37: 01 | C37: 03 | D37: 91.1.00.60001 | E37: 100 | F37: 765.4
A38: Расходы на выплаты персоналу государственных (муниципальных) органов | B38: 01 | C38: 03 | D38: 91.1.00.60001 | E38: 120 | F38: =F39+F40 -> 765.4
A39: Фонд оплаты труда государственных (муниципальных) органов | B39: 01 | C39: 03 | D39: 91.1.00.60001 | E39: 121 | F39: 587.9
A40: Взносы по обязательному социальному страхованию на выплаты денежного содержания и иные выплаты работникам государственных (муниципальных) органов | B40: 01 | C40: 03 | D40: 91.1.00.60001 | E40: 129 | F40: 177.5
A41: Непрограммные расходы органов местного самоуправления | B41: 01 | C41: 04 | D41: 91.0.00.00000 | E41: 000 | F41: =F42+F59 -> 17857.9
A42: Непрограммные расходы органов местного самоуправления за счет средств местного бюджета | B42: 01 | C42: 04 | D42: 91.1.00.00000 | E42: 000 | F42: =F43 -> 17857.2
A43: Осуществление органами местного самоуправления полномочий местного значения поселения | B43: 01 | C43: 04 | D43: 91.1.00.60000 | E43: 000 | F43: =F44 -> 17857.2
A44: Обеспечение деятельности в сфере установленных функций | B44: 01 | C44: 04 | D44: 91.1.00.60001 | E44: 000 | F44: =F45+F48+F50+F53 -> 17857.2
A45: Расходы на выплаты персоналу в целях обеспечения выполнения функций государственными (муниципальными) органами, казенными учреждениями, органами управления государственными внебюджетными фондами | B45: 01 | C45: 04 | D45: 91.1.00.60001 | E45: 100 | F45: =F46 -> 13064.2
A46: Расходы на выплаты персоналу государственных (муниципальных) органов | B46: 01 | C46: 04 | D46: 91.1.00.60001 | E46: 120 | F46: =F47+F49 -> 13064.2
A47: Фонд оплаты труда государственных (муниципальных) органов | B47: 01 | C47: 04 | D47: 91.1.00.60001 | E47: 121 | F47: 10034.0
A48: Иные выплаты персоналу государственных (муниципальных) органов, за исключением фонда оплаты труда | B48: 01 | C48: 04 | D48: 91.1.00.60002 | E48: 122 | F48: 60.0
A49: Взносы по обязательному социальному страхованию на выплаты денежного содержания и иные выплаты работникам государственных (муниципальных) органов | B49: 01 | C49: 04 | D49: 91.1.00.60001 | E49: 129 | F49: 3030.2
A50: Закупка товаров, работ и услуг для обеспечения государственных (муниципальных) нужд | B50: 01 | C50: 04 | D50: 91.1.00.60001 | E50: 200 | F50: =F51 -> 4431.7
A51: Иные закупки товаров, работ и услуг для обеспечения государственных (муниципальных) нужд | B51: 01 | C51: 04 | D51: 91.1.00.60001 | E51: 240 | F51: =F52 -> 4431.7
A52: Прочая закупка товаров, работ и услуг для обеспечения государственных (муниципальных) нужд | B52: 01 | C52: 04 | D52: 91.1.00.60001 | E52: 244 | F52: =3716.7-105-100-60-20+1000 -> 4431.7
A53: Иные бюджетные ассигнования | B53: 01 | C53: 04 | D53: 91.1.00.60001 | E53: 800 | F53: =F54+F57 -> 301.3
A54: Уплата налогов,сборов и иных платежей | B54: 01 | C54: 04 | D54: 91.1.00.60001 | E54: 850 | F54: =F55+F56 -> 71.0
A55: Уплата прочих налогов, сборов | B55: 01 | C55: 04 | D55: 91.1.00.60001 | E55: 852 | F55: 16.0
A56: Уплата иных платежей | B56: 01 | C56: 04 | D56: 91.1.00.60001 | E56: 853 | F56: =35+20 -> 55.0
A57: Исполнение судебных актов | B57: 01 | C57: 04 | D57: 91.1.00.60001 | E57: 830 | F57: =F58 -> 230.3
A58: Исполнение судебных актов Российской Федерации и мировых соглашений по возмещению вреда, причиненного в результате незаконных действий (бездействия) органов государственной власти (государственных органов), органов местного самоуправления либо должностных лиц этих органов, а также в результате деятельности казенных учреждений | B58: 01 | C58: 04 | D58: 91.1.00.60001 | E58: 831 | F58: =125.3+105 -> 230.3
A59: Непрограммные расходы органов местного самоуправления за счет средств областного бюджета | B59: 01 | C59: 04 | D59: 91.2.00.00000 | E59: 000 | F59: =F68+F60 -> 0.7
A60: Субсидии на выравнивание обеспеченности муниципальных образований Иркутской области по реализации ими их отдельных расходных обязательств | B60: 01 | C60: 04 | D60: 91.2.00.72600 | E60: 000 | F60: =F61+F65 -> 0.0
A61: Расходы на выплаты персоналу в целях обеспечения выполнения функций государственными (муниципальными) органами, казенными учреждениями, органами управления государственными внебюджетными фондами | B61: 01 | C61: 04 | D61: 91.2.00.72600 | E61: 100 | F61: =F62 -> 0.0
A62: Расходы на выплаты персоналу государственных (муниципальных) органов | B62: 01 | C62: 04 | D62: 91.2.00.72600 | E62: 120 | F62: =F63+F64 -> 0.0
A63: Фонд оплаты труда государственных (муниципальных) органов | B63: 01 | C63: 04 | D63: 91.2.00.72600 | E63: 121 | F63: 0.0
A64: Взносы по обязательному социальному страхованию на выплаты денежного содержания и иные выплаты работникам государственных (муниципальных) органов | B64: 01 | C64: 04 | D64: 91.2.00.72600 | E64: 129 | F64: 0.0
A65: Иные закупки товаров, работ и услуг для обеспечения государственных (муниципальных) нужд | B65: 01 | C65: 04 | D65: 91.2.00.72600 | E65: 200 | F65: =F66 -> 0.0
A66: Прочая закупка товаров, работ и услуг для обеспечения государственных (муниципальных) нужд | B66: 01 | C66: 04 | D66: 91.2.00.72600 | E66: 240 | F66: =F67 -> 0.0
A67: Прочая закупка товаров, работ и услуг для обеспечения государственных (муниципальных) нужд | B67: 01 | C67: 04 | D67: 91.2.00.72600 | E67: 244 | F67: 0.0
A68: Субвенции на осуществление областного государственного полномочия по определению перечня должностных лиц органов местного самоуправления, уполномоченных составлять протоколы об административных правонарушениях, предусмотренных отдельными законами Иркутской области об административной ответственности | B68: 01 | C68: 04 | D68: 91.2.00.73150 | E68: 000 | F68: =F71 -> 0.7
A69: Закупка товаров, работ и услуг для обеспечения государственных (муниципальных) нужд | B69: 01 | C69: 04 | D69: 91.2.00.73150 | E69: 200 | F69: =F70 -> 0.7
A70: Иные закупки товаров, работ и услуг для обеспечения государственных (муниципальных) нужд | B70: 01 | C70: 04 | D70: 91.2.00.73150 | E70: 240 | F70: =F71 -> 0.7
A71: Прочая закупка товаров, работ и услуг для обеспечения государственных (муниципальных) нужд | B71: 01 | C71: 04 | D71: 91.2.00.73150 | E71: 244 | F71: 0.7
A72: Обеспечение проведения выборов и референдумов | B72: 01 | C72: 07 | D72: 00.0.00.00000 | E72: 000 | F72: =F73 -> 0.0
A73: Непрограммные расходы органов местного самоуправления | B73: 01 | C73: 07 | D73: 91.0.00.00000 | E73: 000 | F73: 0.0
A74: Непрограммные расходы органов местного самоуправления за счет средств местного бюджета | B74: 01 | C74: 07 | D74: 91.1.00.00000 | E74: 000 | F74: 0.0
A75: Осуществление органами местного самоуправления полномочий местного значения поселения | B75: 01 | C75: 07 | D75: 91.1.00.60000 | E75: 000 | F75: 0.0
A76: Проведения выборов и референдумов | B76: 01 | C76: 07 | D76: 91.1.00.60003 | E76: 000 | F76: 0.0
A77: Закупка товаров, работ и услуг для обеспечения государственных (муниципальных) нужд | B77: 01 | C77: 07 | D77: 91.1.00.60003 | E77: 200 | F77: 0.0
A78: Иные закупки товаров, работ и услуг для обеспечения государственных (муниципальных) нужд | B78: 01 | C78: 07 | D78: 91.1.00.60003 | E78: 240 | F78: 0.0
A79: Прочая закупка товаров, работ и услуг для обеспечения государственных (муниципальных) нужд | B79: 01 | C79: 07 | D79: 91.1.00.60003 | E79: 244 | F79: 0.0
A80: Резервные фонды | B80: 01 | C80: 11 | D80: 00.0.00.00000 | E80: 000 | F80: =F81 -> 300.0
A81: Непрограммные расходы органов местного самоуправления | B81: 01 | C81: 11 | D81: 91.1.00.00000 | E81: 000 | F81: 300.0
A82: Непрограммные расходы органов местного самоуправления за счет средств местного бюджета | B82: 01 | C82: 11 | D82: 91.1.00.00000 | E82: 000 | F82: =F83 -> 300.0
A83: Осуществление органами местного самоуправления полномочий местного значения поселения | B83: 01 | C83: 11 | D83: 91.1.00.60000 | E83: 000 | F83: 300.0
A84: Резервный фонд администрации муниципального образования | B84: 01 | C84: 11 | D84: 91.1.00.60004 | E84: 000 | F84: 300.0
A85: Иные бюджетные ассигнования | B85: 01 | C85: 11 | D85: 91.1.00.60004 | E85: 800 | F85: 300.0
A86: Резервные средства | B86: 01 | C86: 11 | D86: 91.1.00.60004 | E86: 870 | F86: 300.0
A87: Другие общегосударственные вопросы | B87: 01 | C87: 13 | D87: 91.1.00.00000 | E87: 000 | F87: =F88 -> 2654.0
A88: Расходы на выплату персоналу в целях обеспечения выполнения функций государственными (муниципальными) органами, казенными учреждениями, органами управления государственными внебюджетными фондами | B88: 01 | C88: 13 | D88: 91.1.00.60002 | E88: 100 | F88: =F89+F90 -> 2654.0
A89: Расходы на выплаты персоналу в целях обеспечения выполнения функций государственными (муниципальными) органами, казенными учреждениями, органами управления государственными внебюджетными фондами | B89: 01 | C89: 13 | D89: 91.1.00.60002 | E89: 111 | F89: 2088.1
A90: Взносы по обязательному социальному страхованию на выплаты по оплате труда работников и иные выплаты работникам учреждений | B90: 01 | C90: 13 | D90: 91.1.00.60002 | E90: 119 | F90: 565.9
A91: НАЦИОНАЛЬНАЯ ОБОРОНА | B91: 02 | C91: 00 | D91: 00.0.00.00000 | E91: 000 | F91: =F92+F93+F94 -> 327.2
A92: Мобилизационная и вневойсковая подготовка | B92: 02 | C92: 03 | D92: 91.3.00.51180 | E92: 121 | F92: 228.3
A93: Мобилизационная и вневойсковая подготовка | B93: 02 | C93: 03 | D93: 91.3.00.51180 | E93: 129 | F93: 68.9
A94: Закупка товаров, работ и услуг для обеспечения государственных (муниципальных) нужд | B94: 02 | C94: 03 | D94: 91.3.00.51180 | E94: 200 | F94: 30.0
A95: Иные закупки товаров, работ и услуг для обеспечения государственных (муниципальных) нужд | B95: 02 | C95: 03 | D95: 91.3.00.51180 | E95: 240 | F95: 30.0
A96: НАЦИОНАЛЬНАЯ БЕЗОПАСНОСТЬ И ПРАВООХРАНИТЕЛЬНАЯ ДЕЯТЕЛЬНОСТЬ | B96: 03 | C96: 00 | D96: 00.0.00.00000 | E96: 000 | F96: =F97 -> 350.0
A97: Обеспечение пожарной безопасности | B97: 03 | C97: 10 | D97: 00.0.00.00000 | E97: 000 | F97: 350.0
A98: Непрограммные расходы органов местного самоуправления | B98: 03 | C98: 10 | D98: 91.0.00.00000 | E98: 000 | F98: 350.0
A99: Непрограммные расходы органов местного самоуправления за счет средств местного бюджета | B99: 03 | C99: 10 | D99: 91.1.00.00000 | E99: 000 | F99: 350.0
A100: Осуществление органами местного самоуправления полномочий местного значения поселения | B100: 03 | C100: 10 | D100: 91.1.00.60000 | E100: 000 | F100: 350.0
A101: Реализация других функций, связанных с обеспечением национальной безопасности и правоохранительной деятельности | B101: 03 | C101: 10 | D101: 91.1.00.60007 | E101: 000 | F101: 350.0
A102: Закупка товаров, работ и услуг для обеспечения государственных (муниципальных) нужд | B102: 03 | C102: 10 | D102: 91.1.00.60007 | E102: 200 | F102: 350.0
A103: Иные закупки товаров, работ и услуг для обеспечения государственных (муниципальных) нужд | B103: 03 | C103: 10 | D103: 91.1.00.60007 | E103: 240 | F103: =F104 -> 350.0
A104: Прочая закупка товаров, работ и услуг для обеспечения государственных (муниципальных) нужд | B104: 03 | C104: 10 | D104: 91.1.00.60007 | E104: 244 | F104: 350.0
A105: НАЦИОНАЛЬНАЯ ЭКОНОМИКА | B105: 04 | C105: 00 | D105: 00.0.00.00000 | E105: 000 | F105: =F106+F116 -> 20262.8
A106: Дорожное хозяйство (дорожные фонды) | B106: 04 | C106: 09 | D106: 00.0.00.00000 | E106: 000 | F106: =F107 -> 10559.8
A107: Непрограммные расходы органов местного самоуправления | B107: 04 | C107: 09 | D107: 91.0.00.00000 | E107: 000 | F107: 10559.8
A108: Непрограммные расходы органов местного самоуправления за счет средств местного бюджета | B108: 04 | C108: 09 | D108: 91.1.00.00000 | E108: 000 | F108: 10559.8
A109: Осуществление органами местного самоуправления полномочий местного значения поселения | B109: 04 | C109: 09 | D109: 91.1.00.60000 | E109: 000 | F109: =F111 -> 10559.8
A110: Приобретение материальных и нематериальных активов в сфере установленных функций | B110: 04 | C110: 09 | D110: 91.1.00.60010 | E110: 000 | F110: =F112 -> 10559.8
A111: Иные мероприятия и сфере установленных функций | B111: 04 | C111: 09 | D111: 91.1.00.60011 | E111: 000 | F111: 10559.8
A112: Закупка товаров, работ и услуг для обеспечения государственных (муниципальных) нужд | B112: 04 | C112: 09 | D112: 91.1.00.60011 | E112: 200 | F112: 10559.8
A113: Иные закупки товаров, работ и услуг для обеспечения государственных (муниципальных) нужд | B113: 04 | C113: 09 | D113: 91.1.00.60011 | E113: 240 | F113: =F115+F114 -> 10559.8
A114: Закупка товаров, работ, услуг в целях капитального ремонта государственного (муниципального) имущества | B114: 04 | C114: 09 | D114: 91.1.00.60011 | E114: 243 | F114: 1960.0
A115: Прочая закупка товаров, работ и услуг для обеспечения государственных (муниципальных) нужд | B115: 04 | C115: 09 | D115: 91.1.00.60011 | E115: 244 | F115: =5633.8+2966 -> 8599.8
A116: Другие вопросы в области национальной экономике | B116: 04 | C116: 12 | D116: 00.0.00.00000 | E116: 000 | F116: =F117 -> 9703.0
A117: Непрограммные расходы органов местного самоуправления | B117: 04 | C117: 12 | D117: 91.1.00.00000 | E117: 000 | F117: 9703.0
A118: Непрограммные расходы органов местного самоуправления за счет средств местного бюджета | B118: 04 | C118: 12 | D118: 91.1.00.00000 | E118: 000 | F118: 9703.0
A119: Осуществление органами местного самоуправления полномочий местного значения поселения | B119: 04 | C119: 12 | D119: 91.1.00.60000 | E119: 000 | F119: =F121 -> 9703.0
A120: Приобретение материальных и нематериальных активов в сфере установленных функций | B120: 04 | C120: 12 | D120: 91.1.00.60010 | E120: 000 | F120: 9703.0
A121: Иные мероприятия и сфере установленных функций | B121: 04 | C121: 12 | D121: 91.1.00.60011 | E121: 000 | F121: 9703.0
A122: Закупка товаров, работ и услуг для обеспечения государственных (муниципальных) нужд | B122: 04 | C122: 12 | D122: 91.1.00.60011 | E122: 200 | F122: 9703.0
A123: Иные закупки товаров, работ и услуг для обеспечения государственных (муниципальных) нужд | B123: 04 | C123: 12 | D123: 91.1.00.60011 | E123: 240 | F123: =F125+F124 -> 9703.0
A124: Закупка товаров, работ, услуг в целях капитального ремонта государственного (муниципального) имущества | B124: 04 | C124: 12 | D124: 91.1.00.60011 | E124: 243 | F124: 873.7
A125: Прочая закупка товаров, работ и услуг для обеспечения государственных (муниципальных) нужд | B125: 04 | C125: 12 | D125: 91.1.00.60011 | E125: 244 | F125: 8829.3
A126: ЖИЛИЩНО-КОММУНАЛЬНОЕ ХОЗЯЙСТВО | B126: 05 | C126: 00 | D126: 00.0.00.00000 | E126: 000 | F126: =F127+F135+F144 -> 23589.7
A127: Жилищное хозяйство | B127: 05 | C127: 01 | D127: 00.0.00.00000 | E127: 000 | F127: =F128 -> 6040.0
A128: Непрограммные расходы органов местного самоуправления | B128: 05 | C128: 01 | D128: 91.0.00.00000 | E128: 000 | F128: 6040.0
A129: Непрограммные расходы органов местного самоуправления за счет средств местного бюджета | B129: 05 | C129: 01 | D129: 91.1.00.00000 | E129: 000 | F129: 6040.0
A130: Осуществление органами местного самоуправления полномочий местного значения поселения | B130: 05 | C130: 01 | D130: 91.1.00.60000 | E130: 000 | F130: 6040.0
A131: Текущий ремонт в сфере установленных функций | B131: 05 | C131: 01 | D131: 91.1.00.60009 | E131: 000 | F131: 6040.0
A132: Закупка товаров, работ и услуг для обеспечения государственных (муниципальных) нужд | B132: 05 | C132: 01 | D132: 91.1.00.60009 | E132: 200 | F132: 6040.0
A133: Иные закупки товаров, работ и услуг для обеспечения государственных (муниципальных) нужд | B133: 05 | C133: 01 | D133: 91.1.00.60009 | E133: 240 | F133: 6040.0
A134: Прочая закупка товаров, работ и услуг для обеспечения государственных (муниципальных) нужд | B134: 05 | C134: 01 | D134: 91.1.00.60009 | E134: 244 | F134: =40+6000 -> 6040.0
A135: Коммунальное хозяйство | B135: 05 | C135: 02 | D135: 00.0.00.00000 | E135: 000 | F135: =F136 -> 5434.7
A136: Непрограммные расходы органов местного самоуправления | B136: 05 | C136: 02 | D136: 91.0.00.00000 | E136: 000 | F136: =F138 -> 5434.7
A137: Непрограммные расходы органов местного самоуправления за счет средств местного бюджета | B137: 05 | C137: 02 | D137: 91.1.00.00000 | E137: 000 | F137: =F138 -> 5434.7
A138: Осуществление органами местного самоуправления полномочий местного значения поселения | B138: 05 | C138: 02 | D138: 91.1.00.60000 | E138: 000 | F138: =F139 -> 5434.7
A139: Иные мероприятия и сфере установленных функций | B139: 05 | C139: 02 | D139: 91.1.00.60011 | E139: 000 | F139: =F140 -> 5434.7
A140: Закупка товаров, работ и услуг для обеспечения государственных (муниципальных) нужд | B140: 05 | C140: 02 | D140: 91.1.00.60011 | E140: 200 | F140: =F141 -> 5434.7
A141: Иные закупки товаров, работ и услуг для обеспечения государственных (муниципальных) нужд | B141: 05 | C141: 02 | D141: 91.1.00.60011 | E141: 240 | F141: =F143+F142 -> 5434.7
A142: Закупка товаров, работ и услуг в целях капитального ремонта государственного (муниципального) имущества | B142: 05 | C142: 02 | D142: 91.1.00.60011 | E142: 243 | F142: =6800-2966 -> 3834.0
A143: Прочая закупка товаров, работ и услуг для обеспечения государственных (муниципальных) нужд | B143: 05 | C143: 02 | D143: 91.1.00.60011 | E143: 244 | F143: =7400+1000+0.3+0.4-6800 -> 1600.7
A144: Благоустройство | B144: 05 | C144: 03 | D144: 00.0.00.00000 | E144: 000 | F144: =F145 -> 12115.0
A145: Непрограммные расходы органов местного самоуправления | B145: 05 | C145: 03 | D145: 91.0.00.00000 | E145: 000 | F145: =F146 -> 12115.0
A146: Непрограммные расходы органов местного самоуправления за счет средств местного бюджета | B146: 05 | C146: 03 | D146: 91.1.00.00000 | E146: 000 | F146: =F147 -> 12115.0
A147: Осуществление органами местного самоуправления полномочий местного значения поселения | B147: 05 | C147: 03 | D147: 91.1.00.60000 | E147: 000 | F147: =F148 -> 12115.0
A148: Мероприятия в области жилищно-коммунального хозяйства | B148: 05 | C148: 03 | D148: 91.1.00.60100 | E148: 000 | F148: =F149+F155+F169 -> 12115.0
A149: Уличное освещение | B149: 05 | C149: 03 | D149: 91.1.00.60101 | E149: 000 | F149: =F150+F153 -> 2362.3
A150: Закупка товаров, работ и услуг для обеспечения государственных (муниципальных) нужд | B150: 05 | C150: 03 | D150: 91.1.00.60101 | E150: 200 | F150: =F151 -> 2362.3
A151: Иные закупки товаров, работ и услуг для обеспечения государственных (муниципальных) нужд | B151: 05 | C151: 03 | D151: 91.1.00.60101 | E151: 240 | F151: =F152 -> 2362.3
A152: Прочая закупка товаров, работ и услуг для обеспечения государственных (муниципальных) нужд | B152: 05 | C152: 03 | D152: 91.1.00.60101 | E152: 244 | F152: =1362.3+600+400 -> 2362.3
A153: Иные бюджетные ассигнования | B153: 05 | C153: 03 | D153: 91.1.00.60101 | E153: 800 | F153: =F154 -> 0.0
A154: Уплата иных платежей | B154: 05 | C154: 03 | D154: 91.1.00.60001 | E154: 853 | F154: 0.0
A155: Прочие мероприятия по благоустройству городских округов и поселений | B155: 05 | C155: 03 | D155: 91.1.00.60105 | E155: 000 | F155: =F156+F159 -> 8972.4
A156: Закупка товаров, работ и услуг для обеспечения государственных (муниципальных) нужд | B156: 05 | C156: 03 | D156: 91.1.00.60105 | E156: 200 | F156: =F157 -> 6472.4
A157: Иные закупки товаров, работ и услуг для обеспечения государственных (муниципальных) нужд | B157: 05 | C157: 03 | D157: 91.1.00.60105 | E157: 240 | F157: =F158 -> 6472.4
A158: Прочая закупка товаров, работ и услуг для обеспечения государственных (муниципальных) нужд | B158: 05 | C158: 03 | D158: 91.1.00.60105 | E158: 244 | F158: =7472.4-1000 -> 6472.4
A159: Непрограммные расходы органов местного самоуправления за счет средств областного бюджета | B159: 05 | C159: 03 | D159: 91.4.00.S2370 | E159: 000 | F159: =F160+F164 -> 2500.0
A160: Субсидии на реализацию мероприятий перечня проектов народных инициатив за счет областного бюджета | B160: 05 | C160: 03 | D160: 91.4.00.S2370 | E160: 000 | F160: =F161 -> 2500.0
A161: Закупка товаров, работ и услуг для обеспечения государственных (муниципальных) нужд | B161: 05 | C161: 03 | D161: 91.4.00.S2370 | E161: 200 | F161: =F162 -> 2500.0
A162: Иные закупки товаров, работ и услуг для обеспечения государственных (муниципальных) нужд | B162: 05 | C162: 03 | D162: 91.4.00.S2370 | E162: 240 | F162: =F163 -> 2500.0
A163: Прочая закупка товаров, работ и услуг для обеспечения государственных (муниципальных) нужд | B163: 05 | C163: 03 | D163: 91.4.00.S2370 | E163: 244 | F163: =2250+250 -> 2500.0
A164: Субсидии на выравнивание обеспеченности муниципальных образований Иркутской области по реализации ими их отдельных расходных обязательств | B164: 05 | C164: 03 | D164: 91.1.00.60115 | E164: 000 | F164: =F165 -> 0.0
A165: Закупка товаров, работ и услуг для обеспечения государственных (муниципальных) нужд | B165: 05 | C165: 03 | D165: 91.1.00.60116 | E165: 200 | F165: =F166 -> 0.0
A166: Иные закупки товаров, работ и услуг для обеспечения государственных (муниципальных) нужд | B166: 05 | C166: 03 | D166: 91.1.00.60117 | E166: 240 | F166: =F167 -> 0.0
A167: Прочая закупка товаров, работ и услуг для обеспечения государственных (муниципальных) нужд | B167: 05 | C167: 03 | D167: 91.1.00.60118 | E167: 244
A168: Субсидии юридическим лицам (кроме некоммерческих организаций), индивидуальным предпринимателям, физическим лицам – производителям товаров, работ, услуг | B168: 05 | C168: 03 | D168: 91.1.00.60100 | E168: 810 | F168: =F169 -> 780.3
A169: Субсидии на возмещение недополученных доходов и (или) возмещение фактически понесенных затрат в связи с производством (реализацией) товаров, выполнением работ, оказанием услуг | B169: 05 | C169: 03 | D169: 91.1.00.60105 | E169: 811 | F169: =3697.4-2917.1 -> 780.3
A170: КУЛЬТУРА, КИНЕМАТОГРАФИЯ | B170: 08 | C170: 00 | D170: 00.0.00.00000 | E170: 000 | F170: =F171 -> 19047.2
A171: КУЛЬТУРА | B171: 08 | C171: 01 | D171: 91.0.00.00000 | E171: 000 | F171: =F172+F178+F185 -> 19047.2
A172: Непрограммные расходы органов местного самоуправления | B172: 08 | C172: 01 | D172: 91.1.00.00000 | E172: 000 | F172: =F173 -> 13224.0
A173: Осуществление органами местного самоуправления полномочий местного значения поселения | B173: 08 | C173: 01 | D173: 91.1.00.60002 | E173: 000 | F173: =F174 -> 13224.0
A174: Расходы на выплату персоналу в целях обеспечения выполнения функций государственными (муниципальными) органами, казенными учреждениями, органами управления государственными внебюджетными фондами | B174: 08 | C174: 01 | D174: 91.1.00.60002 | E174: 100 | F174: =F175 -> 13224.0
A175: Расходы на выплату персоналу казенных учреждений | B175: 08 | C175: 01 | D175: 91.1.00.60002 | E175: 110 | F175: =F176+F177 -> 13224.0
A176: Фонд оплаты труда казенных учреждений и взносы по обязательному социальному страхованию | B176: 08 | C176: 01 | D176: 91.1.00.60002 | E176: 111 | F176: =10659-2088.1+1396 -> 9966.9 | H176: 1396
A177: Взносы по обязательному социальному страхованию на выплаты по оплате труда работников и иные выплаты работникам учреждений | B177: 08 | C177: 01 | D177: 91.1.00.60002 | E177: 119 | F177: =3219-565.9+604 -> 3257.1 | H177: 604
A178: Непрограммные расходы органов местного самоуправления | B178: 08 | C178: 01 | D178: 91.0.00.00000 | E178: 000 | F178: =F179 -> 5690.2
A179: Непрограммные расходы органов местного самоуправления за счет средств местного бюджета | B179: 08 | C179: 01 | D179: 91.1.00.00000 | E179: 000 | F179: 5690.2
A180: Осуществление органами местного самоуправления полномочий местного значения поселения | B180: 08 | C180: 01 | D180: 91.1.00.60000 | E180: 000 | F180: 5690.2
A181: Обеспечение деятельности в сфере установленных функции бюджетных, автономных и казенных учреждений | B181: 08 | C181: 01 | D181: 91.1.00.60002 | E181: 000 | F181: 5690.2
A182: Закупка товаров, работ и услуг для обеспечения государственных (муниципальных) нужд | B182: 08 | C182: 01 | D182: 91.1.00.60002 | E182: 200 | F182: 5690.2
A183: Иные закупки товаров, работ и услуг для обеспечения государственных (муниципальных) нужд | B183: 08 | C183: 01 | D183: 91.1.00.60002 | E183: 240 | F183: 5690.2
A184: Прочая закупка товаров, работ и услуг для обеспечения государственных (муниципальных) нужд | B184: 08 | C184: 01 | D184: 91.1.00.60002 | E184: 244 | F184: =3373.2+600-12+450+400-21+1000-100 -> 5690.2
A185: Иные бюджетные ассигнования | B185: 08 | C185: 01 | D185: 91.1.00.60002 | E185: 850 | F185: =F187+F186 -> 133.0
A186: Уплата прочих налогов, сборов | B186: 08 | C186: 01 | D186: 91.1.00.60002 | E186: 852 | F186: 8.0
A187: Уплата иных платежей | B187: 08 | C187: 01 | D187: 91.1.00.60002 | E187: 853 | F187: =25+100 -> 125.0
A188: СОЦИАЛЬНАЯ ПОЛИТИКА | B188: 10 | C188: 00 | D188: 00.0.00.00000 | E188: 000 | F188: =F189 -> 244.7
A189: Пенсионное обеспечение | B189: 10 | C189: 01 | D189: 00.0.00.00000 | E189: 000 | F189: 244.7
A190: Непрограммные расходы органов местного самоуправления | B190: 10 | C190: 01 | D190: 91.0.00.00000 | E190: 000 | F190: 244.7
A191: Непрограммные расходы органов местного самоуправления за счет средств местного бюджета | B191: 10 | C191: 01 | D191: 91.1.00.00000 | E191: 000 | F191: 244.7
A192: Осуществление органами местного самоуправления полномочий местного значения поселения | B192: 10 | C192: 01 | D192: 91.1.00.60000 | E192: 000 | F192: 244.7
A193: Доплаты к пенсиям муниципальных служащих | B193: 10 | C193: 01 | D193: 91.1.00.60018 | E193: 000 | F193: 244.7
A194: Социальное обеспечение и иные выплаты населению | B194: 10 | C194: 01 | D194: 91.1.00.60018 | E194: 300 | F194: 244.7
A195: Публичные нормативные социальные выплаты гражданам | B195: 10 | C195: 01 | D195: 91.1.00.60018 | E195: 310 | F195: 244.7
A196: Иные пенсии, социальные доплаты к пенсиям | B196: 10 | C196: 01 | D196: 91.1.00.60018 | E196: 312 | F196: 244.7
A197: ФИЗИЧЕСКАЯ КУЛЬТУРА И СПОРТ | B197: 11 | C197: 00 | D197: 00.0.00.00000 | E197: 000 | F197: =F198 -> 
A198: Другие вопросы в области физической культуры и спорта | B198: 11 | C198: 05 | D198: 00.0.00.00000 | E198: 000
A199: Непрограммные расходы органов местного самоуправления | B199: 11 | C199: 05 | D199: 91.0.00.00000 | E199: 000
A200: Непрограммные расходы органов местного самоуправления за счет средств местного бюджета | B200: 11 | C200: 05 | D200: 91.1.00.00000 | E200: 000
A201: Осуществление органами местного самоуправления полномочий местного значения поселения | B201: 11 | C201: 05 | D201: 91.1.00.60000 | E201: 000
A202: Обеспечение деятельности в сфере установленных функции бюджетных, автономных и казенных учреждений | B202: 11 | C202: 05 | D202: 91.1.00.60002 | E202: 000
... 17 more rows
